[Event "FISCA Open 2022"]
[Site "Cap Aurora"]
[Date "2022.06.29"]
[Round "9.9"]
[White "Nicolae, Marian-Valentin"]
[Black "Donici-Maier, David"]
[Result "0-1"]
[ECO "A02"]
[WhiteElo "1886"]
[BlackElo "1786"]
[Annotator "NA RC"]
[PlyCount "118"]
[EventDate "2022.06.22"]
[EventType "swiss"]
[EventCountry "ROU"]
[SourceTitle "playchess.com"]
[Source "ChessBase"]
[SourceQuality "1"]
[TimeControl "5400+30"]

1. f4 {[%emt 0:00:45]} c5 {[%emt 0:01:52]} 2. Nf3 {[%emt 0:01:35]} Nc6 {[%emt 0:01:14]} 3. e3 {[%emt 0:01:24]} g6 {[%emt 0:01:44]} 4. c3 {[%emt 0:00:19]} Bg7 {[%emt 0:02:09]} 5. d4 {[%emt 0:00:08]} cxd4 {[%emt 0:07:11]} 6. exd4 {[%emt 0:00:20]} d6 {[%emt 0:01:44]} 7. Be2 {[%emt 0:01:34]} Nf6 {[%emt 0:01:30]} 8. O-O {[%emt 0:00:08]} O-O {[%emt 0:00:42]} 9. Bd2 {[%emt 0:00:09]} Bf5 {[%emt 0:08:47]} 10. Na3 {[%emt 0:00:30]} Rc8 {[%emt 0:02:50]} 11. Nc4 {[%emt 0:01:23]} Na5 {[%emt 0:05:34]} 12. Ne3 {[%emt 0:01:19]} Be6 {[%emt 0:09:06]} 13. b3 {[%emt 0:06:38]} d5 {[%emt 0:10:39]} 14. Rc1 {[%emt 0:01:38]} a6 {[%emt 0:05:54]} 15. Be1 {[%emt 0:04:38]} Ng4 {[%emt 0:03:24]} 16. Qd2 {[%emt 0:03:01]} Nxe3 {[%emt 0:02:32]} 17. Qxe3 {[%emt 0:00:04]} Bf5 {[%emt 0:01:57]} 18. Bh4 {[%emt 0:00:51]} Rc7 {[%emt 0:03:39]} 19. Nd2 {[%emt 0:00:54]} Qc8 {[%emt 0:02:06]} 20. h3 {[%emt 0:00:39]} h5 {[%emt 0:00:32]} 21. Nf3 {[%emt 0:01:03]} b5 {[%emt 0:03:51]} 22. Qd2 {[%emt 0:03:24]} Nb7 {[%emt 0:02:14]} 23. Ne5 {[%emt 0:03:33]} Nd6 {[%emt 0:03:22]} 24. Be1 {[%emt 0:00:48]} Ne4 {[%emt 0:04:08]} 25. Qe3 {[%emt 0:00:11]} Bxe5 {[%emt 0:07:28]} 26. fxe5 {[%emt 0:00:20]} Kg7 {[%emt 0:02:00]} 27. Bf3 {[%emt 0:02:35]} Qe6 {[%emt 0:03:18]} 28. Bxe4 {[%emt 0:01:08]} Bxe4 {[%emt 0:00:11]} 29. Bh4 {[%emt 0:06:58]} Rfc8 {[%emt 0:00:58]} 30. Be1 {[%emt 0:07:10]} Rf8 {[%emt 0:00:59]} 31. Bd2 {[%emt 0:00:09]} Rh8 {[%emt 0:00:15]} 32. Rf2 {[%emt 0:01:09]} f5 {[%emt 0:01:44]} 33. exf6+ {[%emt 0:02:26]} exf6 {[%emt 0:00:06]} 34. Rcf1 {[%emt 0:00:22]} Rf7 {[%emt 0:00:13]} 35. Re1 {[%emt 0:04:00]} Qc6 {[%emt 0:01:15]} 36. h4 {[%emt 0:03:12]} a5 {[%emt 0:00:42]} 37. Qg3 {[%emt 0:00:11]} Qc7 {[%emt 0:00:31]} 38. Bf4 {[%emt 0:00:27]} Qc6 {[%emt 0:00:30]} 39. Ref1 {[%emt 0:00:28]} Rhf8 {[%emt 0:00:32]} 40. Bd6 {[%emt 0:02:54]} Rd8 {[%emt 0:00:20]} 41. Rxf6 {[%emt 0:03:03]} Rxf6 {[%emt 0:00:28]} 42. Be5 {[%emt 0:00:08]} Rdf8 {[%emt 0:00:27]} 43. Qg5 {[%emt 0:00:15]} Qe6 {[%emt 0:00:43]} 44. c4 {[%emt 0:08:53]} bxc4 {[%emt 0:00:35]} 45. bxc4 {[%emt 0:00:07]} dxc4 {[%emt 0:00:29]} 46. d5 {[%emt 0:08:25]} Bxd5 {[%emt 0:00:30]} 47. Bc3 {[%emt 0:00:30]} Be4 {[%emt 0:00:34]} 48. Rxf6 {[%emt 0:03:12]} Rxf6 {[%emt 0:00:18]} 49. Qf4 {[%emt 0:02:51]} Bd3 {[%emt 0:00:39]} 50. Qc7+ {[%emt 0:01:27]} Kg8 {[%emt 0:00:25]} 51. Qd8+ {[%emt 0:01:31]} Rf8 {[%emt 0:00:30]} 52. Qd4 {[%emt 0:00:11]} Kf7 {[%emt 0:00:32]} 53. Bxa5 {[%emt 0:01:01]} Qf6 {[%emt 0:00:32]} 54. Qd7+ {[%emt 0:04:03]} Kg8 {[%emt 0:00:11]} 55. Bc7 {[%emt 0:02:23]} Rf7 {[%emt 0:00:45]} 56. Qc8+ {[%emt 0:00:38]} Kh7 {[%emt 0:00:32]} 57. Bg3 {[%emt 0:04:16]} Qf1+ {[%emt 0:00:24]} 58. Kh2 {[%emt 0:00:16]} Be4 {[%emt 0:00:16]} 59. Qh3 {[%emt 0:00:40]} Bf5 {[%emt 0:00:13]} 0-1

[Event "FISCA Open 2022"]
[Site "Cap Aurora"]
[Date "2022.06.29"]
[Round "9.10"]
[White "Puia, Alexia-Teodora"]
[Black "Costache, Andrei Eugeniu"]
[Result "1/2-1/2"]
[ECO "D35"]
[WhiteElo "1787"]
[BlackElo "1479"]
[Annotator "NA RC"]
[PlyCount "50"]
[EventDate "2022.06.22"]
[EventType "swiss"]
[EventCountry "ROU"]
[SourceTitle "playchess.com"]
[Source "ChessBase"]
[SourceQuality "1"]
[TimeControl "5400+30"]

1. d4 {[%emt 0:00:04]} d5 {[%emt 0:00:47]} 2. c4 {[%emt 0:00:13]} e6 {[%emt 0:00:21]} 3. Nc3 {[%emt 0:00:07]} c6 {[%emt 0:00:30]} 4. cxd5 {[%emt 0:00:31]} exd5 {[%emt 0:00:41]} 5. Nf3 {[%emt 0:00:32]} Bd6 {[%emt 0:02:07]} 6. Bg5 {[%emt 0:06:36]} Nf6 {[%emt 0:03:25]} 7. e3 {[%emt 0:05:39]} Nbd7 {[%emt 0:01:56]} 8. Bd3 {[%emt 0:01:00]} O-O {[%emt 0:00:55]} 9. O-O {[%emt 0:00:20]} Qc7 {[%emt 0:01:44]} 10. Rc1 {[%emt 0:01:33]} a6 {[%emt 0:00:16]} 11. Re1 {[%emt 0:07:17]} Re8 {[%emt 0:02:45]} 12. e4 {[%emt 0:01:23]} dxe4 {[%emt 0:00:23]} 13. Nxe4 {[%emt 0:00:24]} Nxe4 {[%emt 0:00:28]} 14. Bxe4 {[%emt 0:00:06]} Rf8 {[%emt 0:03:20]} 15. Bb1 {[%emt 0:08:02]} Nb6 {[%emt 0:03:52]} 16. Qd3 {[%emt 0:03:21]} g6 {[%emt 0:04:00]} 17. Bh6 {[%emt 0:05:37]} Rd8 {[%emt 0:03:17]} 18. Qe3 {[%emt 0:05:41]} Bd7 {[%emt 0:07:34]} 19. Ne5 {[%emt 0:03:01]} Be6 {[%emt 0:07:22]} 20. Qf3 {[%emt 0:01:34]} Bf8 {[%emt 0:02:56]} 21. Bf4 {[%emt 0:06:58]} Bd6 {[%emt 0:02:51]} 22. Bg3 {[%emt 0:07:14]} Qe7 {[%emt 0:04:42]} 23. Be4 {[%emt 0:11:24]} Rac8 {[%emt 0:02:28]} 24. Bxc6 {[%emt 0:05:09]} Bxe5 {[%emt 0:01:12]} 25. Bxe5 {[%emt 0:00:20]} Rxc6 {[%emt 0:43:08]} 1/2-1/2

[Event "FISCA Open 2022"]
[Site "Cap Aurora"]
[Date "2022.06.29"]
[Round "9.11"]
[White "Miron, Iurii"]
[Black "Nacu, Mihai"]
[Result "0-1"]
[ECO "A50"]
[WhiteElo "1769"]
[BlackElo "1641"]
[Annotator "NA RC"]
[PlyCount "73"]
[EventDate "2022.06.22"]
[EventType "swiss"]
[EventCountry "ROU"]
[SourceTitle "playchess.com"]
[Source "ChessBase"]
[SourceQuality "1"]
[TimeControl "5400+30"]

1. c4 {[%emt 0:00:08]} b6 {[%emt 0:00:42]} 2. Nc3 {[%emt 0:00:33]} Bb7 {[%emt 0:00:06]} 3. d4 {[%emt 0:00:18]} Nf6 {[%emt 0:00:00]} 4. f3 {[%emt 0:00:46]} e6 {[%emt 0:02:18]} 5. e4 {[%emt 0:01:21]} d5 {[%emt 0:00:57]} 6. e5 {[%emt 0:06:09]} Nfd7 {[%emt 0:00:20]} 7. Be3 {[%emt 0:02:43]} c5 {[%emt 0:05:20]} 8. cxd5 {[%emt 0:03:27]} exd5 {[%emt 0:00:25]} 9. f4 {[%emt 0:01:59]} a6 {[%emt 0:03:52]} 10. Nf3 {[%emt 0:02:08]} cxd4 {[%emt 0:05:01]} 11. Nxd4 {[%emt 0:01:35]} Nc5 {[%emt 0:00:51]} 12. Be2 {[%emt 0:03:17]} Ne4 {[%emt 0:03:24]} 13. Nxe4 {[%emt 0:02:27]} dxe4 {[%emt 0:00:06]} 14. O-O {[%emt 0:00:13]} Bc5 {[%emt 0:01:47]} 15. Nf5 {[%emt 0:03:43]} Bxe3+ {[%emt 0:00:24]} 16. Nxe3 {[%emt 0:00:06]} O-O {[%emt 0:00:06]} 17. Nf5 {[%emt 0:01:43]} b5 {[%emt 0:05:45]} 18. Qxd8 {[%emt 0:01:47]} Rxd8 {[%emt 0:00:05]} 19. Nd6 {[%emt 0:00:08]} Ra7 {[%emt 0:00:37]} 20. Rac1 {[%emt 0:01:02]} Bc6 {[%emt 0:02:24]} 21. Rc5 {[%emt 0:00:50]} f6 {[%emt 0:01:54]} 22. Rfc1 {[%emt 0:01:20]} fxe5 {[%emt 0:01:47]} 23. fxe5 {[%emt 0:01:00]} Re7 {[%emt 0:00:38]} 24. Bd1 {[%emt 0:08:29]} g6 {[%emt 0:06:33]} 25. Bb3+ {[%emt 0:00:18]} Kg7 {[%emt 0:00:13]} 26. Rxc6 {[%emt 0:04:51]} Nxc6 {[%emt 0:00:04]} 27. Rxc6 {[%emt 0:00:05]} e3 {[%emt 0:02:54]} 28. e6 {[%emt 0:05:31]} Rf8 {[%emt 0:02:22]} 29. Rc1 {[%emt 0:03:07]} a5 {[%emt 0:09:03]} 30. Nxb5 {[%emt 0:02:29]} a4 {[%emt 0:01:22]} 31. Bc4 {[%emt 0:00:54]} Rc8 {[%emt 0:01:24]} 32. b3 {[%emt 0:03:55]} Rxe6 {[%emt 0:01:32]} 33. Re1 {[%emt 0:01:53]} Re7 {[%emt 0:01:03]} 34. Nc3 {[%emt 0:00:39]} axb3 {[%emt 0:00:19]} 35. axb3 {[%emt 0:00:06]} Re5 {[%emt 0:00:28]} 36. Nd5 {[%emt 0:00:53]} e2 {[%emt 0:00:06]} 37. Rxe2 {[%emt 0:01:17]} 0-1

[Event "FISCA Open 2022"]
[Site "Cap Aurora"]
[Date "2022.06.29"]
[Round "9.12"]
[White "Visanescu, Dragos-Nicholas"]
[Black "Stegaroiu, Marcel-Florian"]
[Result "1-0"]
[ECO "C41"]
[WhiteElo "1708"]
[BlackElo "1917"]
[Annotator "RC"]
[PlyCount "63"]
[EventDate "2022.06.22"]
[EventType "swiss"]
[EventCountry "ROU"]
[SourceTitle "playchess.com"]
[Source "ChessBase"]
[SourceQuality "1"]
[TimeControl "5400+30"]

1. e4 {[%emt 1:31:00]} e5 {[%emt 1:31:00]} 2. Nf3 {[%emt 0:00:30]} d6 {[%emt 0:00:30]} 3. Bc4 {[%emt 0:00:30]} Be7 {[%emt 0:00:30]} 4. d3 {[%emt 0:00:30]} Nf6 {[%emt 0:00:30]} 5. c3 {[%emt 0:00:30]} O-O {[%emt 0:00:30]} 6. Bb3 {[%emt 0:00:30]} c5 {[%emt 0:00:30]} 7. Nbd2 {[%emt 0:00:30]} Nc6 {[%emt 0:00:30]} 8. Nf1 {[%emt 0:00:30]} b5 {[%emt 0:00:30]} 9. Ne3 {[%emt 0:00:30]} a5 {[%emt 0:00:30]} 10. O-O {[%emt 0:00:30]} a4 {[%emt 0:00:30]} 11. Bc2 {[%emt 0:00:30]} d5 {[%emt 0:00:30]} 12. exd5 {[%emt 0:00:30]} Nxd5 13. c4 {[%emt 0:00:30]} Nxe3 {[%emt 0:01:00]} 14. Bxe3 {[%emt 0:00:30]} Qb6 {[%emt 0:00:30]} 15. h3 {[%emt 0:00:30]} f5 {[%emt 0:00:30]} 16. Rb1 {[%emt 0:00:30]} f4 {[%emt 0:00:30]} 17. Bd2 {[%emt 0:00:30]} Be6 {[%emt 0:00:30]} 18. Bc3 {[%emt 0:00:30]} bxc4 {[%emt 0:00:30]} 19. Nxe5 {[%emt 0:00:30]} Nxe5 {[%emt 0:00:30]} 20. Bxe5 {[%emt 0:00:30]} f3 {[%emt 0:00:30]} 21. g4 {[%emt 0:00:30]} Rad8 {[%emt 0:00:30]} 22. Bxa4 {[%emt 0:00:30]} cxd3 {[%emt 0:00:30]} 23. b3 {[%emt 0:00:30]} h5 {[%emt 0:00:30]} 24. Qe1 {[%emt 0:00:30]} hxg4 {[%emt 0:00:30]} 25. Bc7 {[%emt 0:00:30]} Qxc7 {[%emt 0:00:30]} 26. Qxe6+ {[%emt 0:00:30]} Kh8 {[%emt 0:00:30]} 27. Qxg4 {[%emt 0:00:30]} Rf6 {[%emt 0:00:30]} 28. Kh1 {[%emt 0:00:30]} Rd4 {[%emt 0:00:30]} 29. Qh5+ {[%emt 0:00:30]} Kg8 {[%emt 0:00:30]} 30. Rg1 {[%emt 0:00:30]} d2 {[%emt 0:00:30]} 31. Rxg7+ {[%emt 0:00:30]} Kxg7 {[%emt 0:00:30]} 32. Rg1+ {[%emt 0:00:30]} 1-0

[Event "FISCA Open 2022"]
[Site "Cap Aurora"]
[Date "2022.06.29"]
[Round "9.13"]
[White "Sava, Robert-Gabriel"]
[Black "Socolov, Victor"]
[Result "1/2-1/2"]
[ECO "D04"]
[WhiteElo "1821"]
[BlackElo "1516"]
[Annotator "NA RC"]
[PlyCount "89"]
[EventDate "2022.06.22"]
[EventType "swiss"]
[EventCountry "ROU"]
[SourceTitle "playchess.com"]
[Source "ChessBase"]
[SourceQuality "1"]
[TimeControl "5400+30"]

{[%evp 12,89,16,32767,20,8,14,32767,41,32767,19,32767,32767,23,32767,32767,33,25,32767,29,32767,56,53,60,55,50,91,32767,32767,32767,102,32767,178,43,32,32767,32767,36,45,32767,48,39,46,32767,39,32767,32767,32767,18,32767,-8,77,32767,32767,32767,-14,32767,32767,32767,23,32767,32767,28,0,32767,32767,0,32767,32767,32767,32767,-8,-8,32767,32767,-12,32767,32767,-8,-179]} 1. d4 {[%emt 0:00:05]} Nf6 {[%emt 0:00:53]} 2. Nf3 {[%emt 0:00:17]} g6 {[%emt 0:01:07]} 3. e3 {[%emt 0:00:11]} Bg7 {[%emt 0:00:37]} 4. Bd3 {[%emt 0:00:25]} d5 {[%emt 0:01:20]} 5. O-O {[%emt 0:00:20]} O-O {[%emt 0:00:11]} 6. Nbd2 {[%emt 0:00:31]} Bg4 {[%emt 0:00:59]} 7. c3 {[%emt 0:02:52]} c6 {[%emt 0:03:36]} 8. e4 {[%emt 0:01:06]} dxe4 {[%emt 0:00:57]} 9. Nxe4 {[%emt 0:00:13]} Nxe4 {[%emt 0:00:08]} 10. Bxe4 {[%emt 0:00:09]} Nd7 {[%emt 0:01:40]} 11. h3 {[%emt 0:00:41]} Bxf3 {[%emt 0:01:16]} 12. Bxf3 {[%emt 0:00:11]} Nb6 {[%emt 0:00:29]} 13. Bf4 {[%emt 0:01:37]} e6 {[%emt 0:00:16]} 14. a4 {[%emt 0:03:19]} Nd5 {[%emt 0:00:54]} 15. Bg3 {[%emt 0:01:41]} Bh6 {[%emt 0:01:14]} 16. a5 {[%emt 0:00:56]} a6 {[%emt 0:00:41]} 17. Qb3 {[%emt 0:00:50]} Qd7 {[%emt 0:00:00]} 18. Rad1 {[%emt 0:02:50]} Bf4 {[%emt 0:02:10]} (18... Rfe8 $14) 19. Bxf4 {[%emt 0:03:05]} Nxf4 {[%emt 0:00:46]} 20. c4 {[%emt 0:00:15]} Qc7 {[%emt 0:04:23]} 21. Qe3 {[%emt 0:04:36]} Rfe8 {[%emt 0:03:55] [#]} (21... f6 $1 $14) 22. b4 {[%emt 0:03:40]} (22. g3 $1 $18) 22... e5 $1 {[%emt 0:01:37]} 23. dxe5 {[%emt 0:00:49]} Qxe5 {[%emt 0:00:07]} 24. Qxe5 {[%emt 0:01:20]} Rxe5 {[%emt 0:00:02]} 25. Rd7 {[%emt 0:00:12]} Rb8 {[%emt 0:00:17]} 26. Rfd1 {[%emt 0:00:14]} Kf8 {[%emt 0:02:59]} 27. Kh2 {[%emt 0:03:51]} Re7 {[%emt 0:03:57]} 28. R7d2 {[%emt 0:05:34]} Ne6 {[%emt 0:04:18]} 29. g3 {[%emt 0:07:12]} Ke8 {[%emt 0:00:47]} 30. Bg2 {[%emt 0:01:02]} Rd8 {[%emt 0:00:18]} 31. Rxd8+ {[%emt 0:00:21]} Nxd8 {[%emt 0:00:01]} 32. Rb1 {[%emt 0:02:42]} Kd7 {[%emt 0:02:26]} 33. b5 {[%emt 0:05:14]} cxb5 {[%emt 0:01:17]} 34. cxb5 {[%emt 0:00:46]} axb5 {[%emt 0:05:06]} 35. Rxb5 {[%emt 0:00:51]} Kc7 {[%emt 0:00:54]} 36. f4 {[%emt 0:02:37]} Re2 {[%emt 0:05:16]} 37. g4 {[%emt 0:07:10]} Ra2 {[%emt 0:00:33]} 38. g5 {[%emt 0:03:13]} Nc6 {[%emt 0:04:26]} 39. Kg3 {[%emt 0:01:33]} Nxa5 {[%emt 0:00:47]} 40. Bd5 {[%emt 0:00:31]} Ra3+ {[%emt 0:00:15]} 41. Kg4 $11 {[%emt 0:08:21]} Nc6 {[%emt 0:00:37]} 42. Bxf7 {[%emt 0:02:48]} Nd4 {[%emt 0:00:38]} 43. Rb4 {[%emt 0:02:58]} Nf5 {[%emt 0:01:20]} 44. Rb3 {[%emt 0:00:26]} Ra1 {[%emt 0:00:22]} 45. Bg8 $2 {[%emt 0:08:45]} (45. Rb4 $11 {and White is okay.}) 1/2-1/2